bitfinex/quotes_ETHUSD_20251124
["timestamp","ask_amount","ask_price","bid_price","bid_amount"]
[1763998258566,0.0012,2824.4,2824.3,0.1702]
[1763998258771,0.0012,2824.4,2824.3,0.2404]
[1763998259132,0.0012,2824.4,2824.3,0.1702]
[1763998259351,0.0012,2824.4,2824.3,0.1]
[1763998259537,0.0012,2824.4,2824.3,0.1702]
[1763998260169,0.0012,2824.4,2824.3,0.205607]
[1763998260376,0.002,2825.0,2824.8,0.0682]
[1763998260588,0.1879,2826.2,2825.1,0.1]
[1763998260589,0.4789,2826.1,2825.1,0.1]
[1763998260755,0.4809,2825.2,2824.1,6.81238]
[1763998260943,0.4809,2825.2,2823.9,11.4987071]
[1763998260944,0.4615,2825.0,2824.2,0.75379741]
[1763998261146,0.002,2825.2,2824.5,0.405504]
[1763998261381,0.002,2825.2,2824.6,0.1]
[1763998261698,0.002,2825.2,2825.1,0.0682]
[1763998261895,0.002,2825.2,2825.1,0.79379411]
[1763998262177,0.002,2825.2,2825.1,1.58984423]
[1763998262994,0.002,2825.2,2825.1,1.68984423]
[1763998263148,0.002,2825.2,2825.1,5.77144593]
[1763998263499,0.1879,2827.1,2825.1,5.77144593]
[1763998263500,0.6668,2827.1,2825.4,0.405504]
[1763998263647,0.6668,2827.1,2826.4,0.1]
[1763998263648,0.1879,2827.1,2826.4,0.1]
[1763998263982,0.6668,2827.1,2826.2,1.05559411]
[1763998264300,0.6668,2827.1,2826.2,1.79002423]
[1763998264451,0.4789,2827.0,2826.2,1.56002423]
[1763998264646,0.4789,2827.0,2826.2,0.72559411]
[1763998265556,0.1879,2827.1,2826.4,0.1]
[1763998265883,0.1879,2827.1,2826.3,0.1]
[1763998266259,0.1879,2827.1,2826.4,0.1]
[1763998266527,0.002,2827.9,2827.0,6.95417]
[1763998266786,0.002,2827.9,2827.4,7.6187071]
[1763998266946,0.002,2827.9,2827.6,0.405504]
[1763998267145,0.002,2827.9,2827.8,0.505504]
[1763998267362,0.002,2828.3,2827.9,4.63822911]
[1763998267564,0.002,2828.6,2828.4,0.405504]
[1763998267767,0.002,2828.6,2828.2,0.72559411]
[1763998267768,0.002,2828.6,2828.5,9.07980521]
[1763998268067,0.4789,2829.9,2829.2,0.1]
[1763998268278,0.165,2830.7,2829.4,0.473704]
[1763998268475,0.4789,2830.4,2829.4,0.473704]
[1763998268698,0.4789,2830.4,2829.4,0.803704]
[1763998269101,0.4789,2830.9,2829.4,0.871904]
[1763998269304,0.4789,2830.9,2829.5,0.405504]
[1763998269602,0.4789,2830.9,2830.0,0.505504]
[1763998269800,0.1879,2831.0,2830.0,3.87369811]
[1763998269998,0.1879,2831.0,2830.0,4.32926792]
[1763998270199,0.4789,2831.3,2830.0,4.32926792]
[1763998270200,0.4789,2831.3,2830.4,0.405504]
[1763998270404,0.4789,2831.3,2830.3,0.82559411]
[1763998270611,0.4789,2831.3,2830.0,0.405504]
[1763998270803,0.4789,2831.3,2830.3,0.23]
[1763998271668,0.4789,2831.3,2830.3,0.405504]
[1763998271874,0.55446778,2831.6,2830.6,0.1]
[1763998272070,0.55446778,2831.6,2830.6,0.23]
[1763998272071,0.4789,2831.5,2830.6,0.23]
[1763998272584,0.002,2831.8,2830.9,0.405504]
[1763998272783,0.002,2831.8,2831.3,0.72559411]
[1763998273410,0.002,2831.8,2831.1,0.23]
[1763998273411,0.4789,2831.7,2831.1,0.23]
[1763998273615,0.002,2831.8,2831.2,0.1]
[1763998273781,0.002,2831.6,2831.2,0.1]
[1763998273966,0.002,2831.6,2831.1,0.23]
[1763998274171,0.4809,2831.6,2831.1,0.23]
[1763998274679,0.002,2831.6,2831.1,1.0772351]
[1763998274891,0.002,2831.6,2831.2,0.1]
[1763998275092,0.002,2831.6,2831.1,0.23]
[1763998275293,0.002,2831.6,2831.2,0.405504]
[1763998275499,0.002,2831.6,2831.3,0.1]
[1763998275705,0.002,2831.6,2831.4,0.72559411]
[1763998276015,0.002,2831.6,2831.5,0.735504]
[1763998276170,0.002,2831.6,2830.8,7.51675693]
[1763998276372,0.002,2831.6,2831.0,0.505504]
[1763998276685,0.4809,2831.6,2830.3,7.51675693]
[1763998276889,0.4809,2831.6,2830.4,0.23]
[1763998277101,0.4809,2831.6,2830.4,1.07287569]
[1763998277304,0.002,2831.6,2830.8,7.61675693]
[1763998277611,0.002,2831.6,2830.5,0.405504]
[1763998277612,0.4789,2831.5,2830.5,0.405504]
[1763998277811,0.4789,2831.5,2830.6,0.23]
[1763998278110,0.4781,2831.5,2830.6,0.23]
[1763998278706,0.4781,2831.5,2830.4,0.95559411]
[1763998278911,0.1879,2830.7,2829.6,7.61675693]
[1763998279091,0.4781,2831.5,2830.2,7.58933]
[1763998279282,0.4781,2831.5,2830.5,0.1]
[1763998279595,0.002,2831.6,2830.8,0.1]
[1763998280108,0.1954,2830.9,2830.4,0.405504]
[1763998280606,0.4742,2831.5,2830.5,0.1]
[1763998280807,0.4742,2831.5,2830.8,0.1]
[1763998280993,0.4742,2831.5,2830.4,0.505504]
[1763998281510,0.4742,2831.5,2830.3,0.95559411]
[1763998281511,0.4742,2831.5,2830.3,0.72559411]
[1763998281685,0.1954,2830.5,2830.0,0.23]
[1763998281884,0.1954,2830.7,2830.0,0.23]
[1763998282082,0.1954,2830.7,2829.2,0.169]
[1763998282274,0.1954,2829.9,2829.2,0.169]
[1763998282676,0.1954,2829.9,2828.8,7.51675693]
[1763998282872,0.6696,2829.9,2828.7,0.23]
[1763998283393,0.4742,2829.8,2828.7,0.23]
[1763998283590,0.4742,2829.8,2828.2,0.069]
[1763998283591,0.1954,2828.8,2828.2,0.069]
[1763998283783,0.4742,2829.8,2828.2,0.069]
[1763998283784,0.4742,2829.8,2828.3,0.33]
[1763998284007,0.4742,2829.7,2828.3,0.33]
[1763998284315,0.002,2831.6,2829.9,0.405504]
[1763998284534,0.002,2831.6,2831.3,0.72559411]
[1763998285235,0.002,2831.6,2831.4,0.23]
[1763998285610,0.002,2831.6,2831.5,0.405504]
[1763998285926,0.002,2831.6,2831.5,0.505504]
[1763998286274,0.002,2831.6,2831.4,0.1]
[1763998286477,0.002,2831.6,2831.5,0.23]
[1763998286709,0.002,2831.6,2831.5,0.735504]
[1763998287036,0.002,2831.6,2831.5,6.13615197]
[1763998287367,0.4742,2832.5,2831.7,8.34235104]
[1763998287477,0.4742,2832.5,2831.7,8.24235104]
[1763998287674,0.4742,2832.2,2831.7,0.72559411]
[1763998288314,0.4762,2832.4,2831.7,0.72559411]
[1763998288633,0.002,2832.4,2831.7,12.34830258]
[1763998288917,0.002,2832.4,2832.0,2.912032]
[1763998289091,0.002,2832.4,2832.0,3.86762611]
[1763998289416,0.002,2832.4,2832.0,1.85476072]
[1763998289629,0.002,2832.4,2832.0,4.33968511]
[1763998289929,0.002,2832.4,2832.0,4.41599011]
[1763998290219,0.002,2832.4,2832.0,4.18035311]
[1763998290431,0.002,2832.4,2832.0,1.46109811]
[1763998290581,0.002,2832.4,2832.0,15.09172436]
[1763998290780,0.002,2832.4,2832.3,0.574504]
[1763998291020,0.1954,2833.6,2832.3,0.069]
[1763998291184,0.4742,2833.3,2832.5,0.405504]
[1763998291381,0.1954,2833.6,2832.8,7.56663381]
[1763998291582,0.1954,2833.6,2833.0,0.1]
[1763998291820,0.1954,2833.6,2832.8,7.56663381]
[1763998291821,0.4742,2833.5,2832.8,7.79663381]
[1763998292032,0.1954,2832.9,2832.3,7.63563381]
[1763998292211,0.1954,2832.9,2832.5,0.23]
[1763998292518,0.002,2832.2,2832.0,0.95559411]
[1763998292725,0.002,2832.2,2832.0,0.23]
[1763998293094,0.002,2832.2,2832.1,3.36188311]
[1763998293330,0.002,2832.2,2832.1,1.23109811]
[1763998293485,0.002,2832.2,2832.1,3.68685311]
[1763998293716,0.002,2832.2,2832.1,4.09235711]
[1763998293900,0.002,2832.2,2832.1,4.19235711]
[1763998294239,0.1954,2833.6,2832.2,1.13109811]
[1763998294240,0.4742,2833.2,2832.2,1.13109811]
[1763998294395,0.4742,2833.2,2832.6,0.1]
[1763998294986,0.4742,2833.2,2832.5,0.95559411]
[1763998295186,0.1954,2833.6,2832.6,0.405504]
[1763998295420,0.1954,2833.6,2832.9,7.56663381]
[1763998295720,0.1954,2833.6,2833.1,0.1]
[1763998295918,0.6696,2833.6,2833.0,0.72559411]
[1763998296217,0.1954,2833.6,2833.0,0.72559411]
[1763998296424,0.1954,2833.6,2833.2,0.1]
[1763998296622,0.4742,2833.5,2833.0,0.95559411]
[1763998296920,0.4742,2833.5,2833.0,1.05559411]
[1763998297100,0.4742,2833.5,2832.8,0.23]
[1763998298825,0.4742,2833.5,2832.9,0.1]
[1763998299137,0.4742,2833.5,2832.3,3.59960456]
[1763998299138,0.1954,2832.9,2832.0,7.66663381]
[1763998299308,0.1954,2832.9,2832.3,0.72559411]
[1763998299509,0.4742,2833.3,2832.5,7.56663381]
[1763998300112,0.4742,2833.3,2832.6,0.229]
[1763998300499,0.1954,2833.8,2833.1,0.72559411]
[1763998300701,0.1954,2833.8,2833.3,0.1]
[1763998301125,0.6696,2833.8,2833.3,0.1]
[1763998301710,0.6688,2833.8,2833.3,0.1]
[1763998302337,0.1946,2833.8,2833.3,0.1]
[1763998302766,0.6688,2833.8,2833.4,7.08400235]
[1763998302943,0.6688,2833.8,2833.1,0.72559411]
[1763998303243,0.4742,2833.7,2833.0,7.08400235]
[1763998303431,0.4742,2833.7,2832.7,0.72559411]
[1763998303629,0.1954,2832.8,2832.7,0.72559411]
[1763998304207,0.6696,2832.8,2832.6,7.08400235]
[1763998304616,0.4742,2832.7,2832.3,0.229]
[1763998305347,0.4742,2832.7,2832.1,0.72559411]
[1763998305517,0.4742,2832.7,2832.2,0.229]
[1763998306249,0.1954,2832.8,2832.2,0.229]
[1763998306606,0.4742,2833.3,2832.5,6.19304448]
[1763998308637,0.4742,2833.3,2832.6,0.229]
[1763998308840,0.676,2833.8,2832.8,0.1]
[1763998309237,0.4814,2833.7,2832.8,0.1]
[1763998309451,0.4814,2833.7,2832.6,0.72559411]
[1763998309652,0.4814,2833.7,2832.8,0.229]
[1763998309852,0.4814,2833.7,2832.9,0.329]
[1763998310055,0.002,2833.5,2832.9,0.329]
[1763998310628,0.002,2833.5,2832.9,0.229]
[1763998311060,0.002,2833.5,2833.0,6.19304448]
[1763998311239,0.002,2833.5,2833.2,0.1]
[1763998311570,0.002,2833.5,2833.4,0.405504]
[1763998311755,0.002,2833.5,2833.4,0.505504]
[1763998312065,0.002,2833.5,2833.4,4.11952411]
[1763998312227,0.002,2833.8,2833.7,0.505504]
[1763998312430,0.002,2833.8,2833.7,7.65314259]
[1763998312644,0.002,2834.1,2834.0,9.58950711]
[1763998312915,0.002,2834.1,2834.0,0.634504]
[1763998313063,0.002,2834.1,2833.7,6.42204448]
[1763998313064,0.4582,2834.1,2833.7,6.42204448]
[1763998313398,0.002,2834.1,2833.7,6.42204448]
[1763998313546,0.002,2834.1,2833.7,6.52204448]
[1763998314373,0.4582,2834.1,2833.7,6.42204448]
[1763998314846,0.002,2834.1,2833.7,6.52204448]
[1763998315046,0.4582,2834.1,2833.7,6.42204448]
[1763998315242,0.4582,2834.1,2832.9,3.52984636]
[1763998315243,0.1901,2833.8,2832.2,0.71476386]
[1763998315500,0.1901,2833.8,2832.7,0.1]
[1763998315644,0.1901,2833.8,2833.1,6.19304448]
[1763998315645,0.6463,2833.8,2833.1,6.19304448]
[1763998315980,0.6463,2833.8,2833.2,0.229]
[1763998316693,0.1901,2833.8,2833.1,6.19304448]
[1763998316844,0.1901,2833.8,2833.2,0.229]
[1763998317046,0.1901,2833.8,2833.2,1.60679856]
[1763998317574,0.1901,2833.8,2833.2,0.95459411]
[1763998317944,0.1901,2834.0,2833.4,0.405504]
[1763998318153,0.1901,2834.0,2833.5,0.1]
[1763998318347,0.002,2834.1,2833.7,6.19304448]
[1763998318570,0.002,2834.1,2833.8,0.1]
[1763998318975,0.002,2834.1,2833.9,0.405504]
[1763998319178,0.002,2834.1,2834.0,0.329]
[1763998319596,0.002,2834.1,2834.0,0.734504]
[1763998319773,0.002,2834.1,2834.0,0.634504]
[1763998320182,0.002,2834.1,2833.9,0.1]
[1763998320380,0.002,2834.1,2834.0,0.229]
[1763998320583,0.4562,2835.5,2834.1,7.774686]
[1763998320794,0.10987227,2835.9,2834.1,7.774686]
[1763998320795,0.56607227,2835.9,2835.2,0.0698]
[1763998321064,0.29997227,2835.9,2835.7,0.405504]
[1763998321284,0.29997227,2835.9,2835.6,6.19304448]
[1763998321502,0.29997227,2835.9,2835.2,0.0698]
[1763998321503,0.4562,2835.8,2835.5,0.229]
[1763998321795,0.4562,2835.8,2835.2,0.72559411]
[1763998321796,0.4562,2835.8,2835.3,0.229]
[1763998322285,0.29997227,2835.9,2835.4,0.405504]
[1763998322487,0.4562,2835.8,2834.2,0.0698]
[1763998322688,0.4562,2835.8,2835.3,0.405504]
[1763998322997,0.29997227,2835.9,2835.6,0.1]
[1763998323165,0.29997227,2835.9,2835.3,0.734504]
[1763998323497,0.29997227,2835.9,2835.1,0.405504]
[1763998323703,0.4562,2835.8,2835.0,0.229]
[1763998323898,0.4562,2835.8,2834.7,0.229]
[1763998324598,0.1901,2834.8,2834.3,7.07970534]
[1763998324763,0.1901,2834.8,2834.4,0.229]
[1763998324965,0.6463,2834.8,2834.3,7.07970534]
[1763998325163,0.6463,2834.8,2834.1,0.229]
[1763998325410,0.1901,2834.8,2834.3,7.07970534]
[1763998325567,0.1893,2834.8,2834.3,7.07970534]
[1763998325897,0.1893,2834.8,2834.0,1.05459411]
[1763998325898,0.6455,2834.8,2834.0,1.05459411]
[1763998326145,0.6455,2834.8,2834.0,0.229]
[1763998326411,0.6455,2834.8,2833.9,7.07970534]
[1763998326412,0.4562,2834.7,2833.9,7.07970534]
[1763998326627,0.4562,2834.7,2832.1,7.77506401]
[1763998326628,0.4562,2834.7,2833.5,7.30870534]
[1763998326767,0.4562,2834.7,2833.9,7.17970534]
[1763998326967,0.4562,2834.7,2834.0,0.229]
[1763998327815,0.4562,2834.7,2833.9,7.17970534]
[1763998328010,0.4562,2834.7,2833.8,0.001]
[1763998328899,0.1901,2833.9,2833.8,0.001]
[1763998329285,0.6463,2833.9,2833.8,0.001]
[1763998330528,0.1893,2834.8,2833.8,0.001]
[1763998330529,0.4562,2834.4,2833.8,0.001]
[1763998330726,0.1893,2834.8,2833.8,0.001]
[1763998330945,0.6455,2834.8,2833.9,7.07970534]
[1763998331095,0.6455,2834.8,2834.0,0.80807053]
[1763998331310,0.1893,2834.8,2834.3,7.07970534]
[1763998331485,0.1893,2834.8,2834.0,0.70807053]
[1763998331486,0.4562,2834.7,2834.1,0.405504]
[1763998331817,0.1893,2834.8,2834.3,7.17970534]
[1763998332382,0.4562,2835.7,2834.7,7.17970534]
[1763998332895,0.4562,2835.7,2834.7,7.07970534]
[1763998333421,0.1901,2834.8,2834.3,7.07970534]
[1763998333617,0.1901,2834.8,2834.2,0.229]
[1763998334181,0.002,2835.8,2834.7,7.07970534]
[1763998334387,0.4582,2835.8,2834.9,0.1]
[1763998334586,0.4582,2835.8,2834.9,0.229]
[1763998334784,0.4582,2835.8,2834.9,0.95987053]
[1763998334988,0.4582,2835.8,2835.2,0.405504]
[1763998335229,0.002,2835.8,2835.3,0.1]
[1763998335815,0.002,2835.8,2835.2,7.07970534]
[1763998336022,0.4582,2835.8,2835.0,0.229]
[1763998336409,0.4582,2835.8,2835.1,0.1]
[1763998336609,0.4582,2835.8,2834.8,7.07970534]
[1763998336922,0.4582,2835.8,2834.8,7.30870534]
[1763998337220,0.4582,2835.8,2834.7,0.1]
[1763998337449,0.4582,2835.8,2834.6,0.229]
[1763998337897,0.4582,2835.8,2834.8,7.17970534]
[1763998338998,0.4582,2835.8,2834.8,7.07970534]
[1763998339810,0.4582,2835.8,2834.9,0.1]
[1763998340204,0.4582,2835.8,2835.2,7.07970534]
[1763998340926,0.4582,2835.8,2834.8,7.07970534]
[1763998341086,0.4582,2835.8,2834.9,0.1]
[1763998341737,0.002,2835.8,2834.9,1.13109811]
[1763998341898,0.4639,2835.7,2834.9,0.72559411]
[1763998342096,0.4639,2835.7,2835.0,0.229]
[1763998342295,0.4639,2835.7,2835.0,0.32256]
[1763998342497,0.002,2835.8,2835.2,7.07970534]
[1763998342697,0.002,2835.8,2835.3,0.09356]
[1763998343627,0.002,2835.8,2835.2,7.07970534]
[1763998343800,0.4659,2835.8,2835.3,0.09356]
[1763998343989,0.4659,2835.8,2835.2,7.07970534]
[1763998344415,0.4659,2835.8,2835.1,0.229]
[1763998344626,0.4659,2835.8,2835.0,0.229]
[1763998344835,0.4659,2835.8,2834.9,0.81915411]
[1763998345006,0.4659,2835.8,2835.0,0.229]
[1763998345332,0.4659,2835.8,2834.9,0.72559411]
[1763998345624,0.4659,2835.8,2835.1,0.09356]
[1763998345828,0.4659,2835.8,2834.9,1.53938005]
[1763998345829,0.002,2835.8,2835.3,0.72559411]
[1763998346130,0.4659,2835.8,2835.3,0.72559411]
[1763998346633,0.4659,2835.8,2835.2,0.229]
[1763998347329,0.002,2835.8,2835.2,0.32256]
[1763998347529,0.002,2835.8,2835.5,0.09356]
[1763998347827,0.002,2835.8,2835.5,0.88344595]
[1763998348230,0.4659,2835.8,2835.3,0.229]
[1763998348535,0.4659,2835.8,2835.1,0.09356]
[1763998348696,0.4659,2835.8,2835.1,0.32256]
[1763998349030,0.4659,2835.8,2834.9,0.23]
[1763998349431,0.4651,2835.8,2835.0,0.09356]
[1763998349632,0.0012,2835.8,2835.3,0.09356]
[1763998349832,0.0012,2835.8,2835.4,7.07970534]
[1763998350634,0.0012,2835.8,2835.6,0.09356]
[1763998351012,0.0012,2835.8,2835.5,0.229]
[1763998351207,0.0012,2835.8,2835.3,0.09356]
[1763998351431,0.0012,2835.8,2835.4,0.09356]
[1763998351632,0.0012,2835.8,2835.5,0.09356]
[1763998352023,0.0012,2835.8,2835.2,0.72559411]
[1763998352024,0.4651,2835.8,2835.2,0.72559411]
[1763998352346,0.4575,2835.6,2834.7,4.25329554]
[1763998352645,0.4651,2835.8,2835.0,0.81915411]
[1763998352850,0.4651,2835.8,2835.0,0.72559411]
[1763998353450,0.4651,2835.8,2834.9,7.40326534]
[1763998353451,0.4575,2835.1,2834.9,0.001]
[1763998353655,0.4575,2835.0,2834.9,0.001]
[1763998354150,0.4639,2835.3,2834.9,0.001]
[1763998354351,0.4575,2835.0,2834.9,0.001]
[1763998354552,0.4575,2835.0,2834.3,0.001]
[1763998354737,0.1818,2834.7,2834.3,0.001]
[1763998355125,0.4639,2834.6,2834.3,0.001]
[1763998355324,0.1818,2833.9,2833.5,0.001]
[1763998356251,0.4639,2834.6,2833.5,0.001]
[1763998356448,0.4639,2834.6,2833.7,0.09356]
[1763998356746,0.4139,2834.6,2833.7,0.09356]
[1763998356945,0.4139,2834.6,2833.5,0.001]
[1763998357154,0.4139,2834.6,2833.5,0.09456]
[1763998357352,0.1818,2833.6,2833.5,0.001]
[1763998359335,0.75557227,2835.9,2834.7,0.09356]
[1763998359643,0.4639,2835.7,2834.8,0.95459411]
[1763998359843,0.4639,2835.7,2834.8,0.72559411]
[1763998360043,0.4639,2835.7,2834.8,0.81915411]
[1763998360449,0.4639,2835.7,2834.8,0.72559411]
[1763998360652,0.4639,2835.7,2835.0,0.09356]
[1763998360835,0.4639,2835.7,2834.8,1.53838005]
[1763998360836,0.4639,2835.7,2834.8,1.63194005]
[1763998361031,0.4639,2835.7,2835.1,0.09356]
[1763998361547,0.4639,2835.7,2834.8,1.53838005]
[1763998361743,0.29167227,2835.9,2835.2,1.13109811]
[1763998361946,0.10987227,2835.9,2835.3,0.82108035]
[1763998362147,0.29167227,2835.9,2835.3,0.82108035]
[1763998362458,0.29167227,2835.9,2835.2,0.72559411]
[1763998362459,0.4651,2835.8,2835.2,0.72559411]
[1763998362780,0.4651,2835.8,2834.8,1.76738005]
[1763998362979,0.4651,2835.8,2834.8,0.95459411]
[1763998363181,0.4651,2835.8,2834.8,0.09356]
[1763998363351,0.4651,2835.8,2834.7,7.07970534]
[1763998363352,0.002,2835.7,2834.7,7.17326534]
[1763998363684,0.002,2835.7,2834.4,0.72559411]
[1763998363837,0.4639,2835.6,2834.6,0.09356]
[1763998364178,0.4639,2835.6,2834.7,0.09356]
[1763998364540,0.4639,2835.6,2834.5,0.80342995]
[1763998364765,0.4639,2835.6,2834.6,0.44078234]
[1763998364951,0.002,2835.7,2834.7,11.13811615]
[1763998365180,0.002,2835.7,2834.8,0.229]
[1763998365364,0.002,2835.7,2834.8,0.95459411]
[1763998365684,0.002,2835.7,2835.2,7.55646951]
[1763998365864,0.002,2835.7,2835.3,0.72559411]
[1763998366063,0.002,2835.7,2834.8,0.95459411]
[1763998366064,0.4639,2835.6,2834.8,0.72559411]
[1763998366351,0.4639,2835.6,2835.0,0.09356]
[1763998366552,0.4639,2835.6,2834.8,0.72559411]
[1763998366880,0.4639,2835.6,2834.8,0.09356]
[1763998367647,0.4639,2835.6,2834.7,0.32256]
[1763998367850,0.4639,2835.6,2834.7,0.229]
[1763998368054,0.4639,2835.6,2834.9,0.09356]
[1763998368251,0.4639,2835.6,2834.3,3.93363687]
[1763998368480,0.4639,2835.6,2834.4,0.229]
[1763998368645,0.4639,2835.6,2834.8,0.09356]
[1763998368836,0.4639,2835.6,2834.5,0.405504]
[1763998369049,0.4639,2835.6,2834.6,0.229]
[1763998369254,0.4639,2835.6,2834.8,0.09356]
[1763998369456,0.4639,2835.6,2834.8,0.72559411]
[1763998369686,0.4639,2835.6,2835.0,0.09356]
[1763998370494,0.002,2835.7,2835.0,0.09356]
[1763998370964,0.002,2835.7,2834.8,0.72559411]
[1763998371158,0.002,2835.7,2835.0,0.09356]
[1763998371764,0.002,2835.7,2835.0,0.72559411]
[1763998372095,0.002,2835.7,2835.0,0.32256]
[1763998372458,0.002,2835.7,2835.1,0.09356]
[1763998372658,0.002,2835.7,2835.2,7.55646951]
[1763998373082,0.0012,2835.7,2835.3,0.09356]
[1763998373402,0.0012,2835.7,2835.2,7.55646951]
[1763998373603,0.0012,2835.7,2835.3,0.09356]
[1763998374104,0.0012,2835.7,2835.2,8.78130533]
[1763998374405,0.4717,2835.7,2835.2,8.78130533]
[1763998374610,0.4557,2835.3,2834.9,0.72559411]
[1763998374979,0.9262,2835.3,2834.9,0.72559411]
[1763998375157,0.0012,2835.7,2834.9,0.72559411]
[1763998375358,0.4717,2835.7,2835.0,0.09356]
[1763998375702,0.4717,2835.7,2834.9,0.72559411]
[1763998376270,0.0012,2835.7,2835.4,0.72559411]
[1763998376494,0.4705,2835.6,2835.0,0.72559411]
[1763998376679,0.4557,2835.4,2834.9,0.95459411]
[1763998377282,0.9262,2835.4,2834.9,0.95459411]
[1763998377482,0.9262,2835.4,2835.0,0.09356]
[1763998377715,0.9262,2835.4,2834.9,1.04815411]
[1763998377716,0.4557,2835.4,2834.9,1.04815411]
[1763998378224,0.4557,2835.4,2835.0,0.09356]
[1763998378391,0.4557,2835.4,2834.9,1.04815411]
[1763998378724,0.4717,2835.7,2835.0,0.09356]
[1763998379226,0.0012,2835.7,2835.0,1.2132207]
[1763998379528,0.0012,2835.7,2835.1,0.72559411]
[1763998379724,0.0012,2835.7,2835.2,0.72559411]
[1763998380025,0.0012,2835.7,2835.4,0.72559411]
[1763998380234,0.0012,2835.7,2835.6,0.553064]
[1763998380434,0.0012,2835.8,2835.7,0.09356]
[1763998380588,0.0012,2835.8,2835.7,0.43056]
[1763998380790,0.002,2836.3,2836.0,0.054]
[1763998381016,1.13941832,2839.3,2836.3,1.13109811]
[1763998381305,0.4705,2837.9,2837.1,0.09356]
[1763998381510,0.4705,2837.9,2836.9,0.229]
[1763998381705,0.4705,2837.9,2837.0,0.81915411]
[1763998381917,0.4705,2837.9,2837.0,1.67961647]
[1763998382102,0.4705,2837.9,2837.1,0.229]
[1763998382719,0.4705,2837.9,2837.1,0.09356]
[1763998383033,0.4557,2837.2,2837.0,0.229]
[1763998383240,0.4557,2837.2,2836.3,8.98576918]
[1763998383443,0.9262,2837.2,2836.4,1.13297692]
[1763998383601,0.405504,2838.6,2836.8,7.55646951]
[1763998383799,0.4705,2837.9,2836.9,0.81915411]
[1763998384219,0.4705,2837.9,2836.9,0.72559411]
[1763998384421,0.4705,2837.9,2836.4,0.72559411]
[1763998384605,0.4557,2836.9,2836.2,0.32256]
[1763998384804,0.4557,2836.9,2836.5,0.09356]
[1763998385002,0.6445,2836.9,2836.5,0.09356]
[1763998385203,1.115,2836.9,2836.2,0.229]
[1763998385646,0.4705,2836.8,2836.1,0.32256]
[1763998385858,0.4705,2836.8,2836.1,0.09356]
[1763998386006,0.4705,2836.8,2835.9,0.229]
[1763998386202,0.4705,2836.8,2835.9,0.32256]
[1763998386550,0.4705,2836.8,2835.8,0.09356]
[1763998386717,0.4705,2836.8,2835.5,0.87070111]
[1763998386906,0.4705,2836.8,2835.7,0.229]
[1763998387103,0.4705,2836.8,2835.5,0.14756]
[1763998387335,0.4705,2836.8,2835.6,0.229]
[1763998387535,0.4705,2836.8,2835.2,0.054]
[1763998387777,0.1888,2836.0,2835.2,0.37656]
[1763998387951,0.1888,2836.7,2835.3,0.4256453]
[1763998388251,0.1888,2836.7,2835.3,0.44437567]
[1763998388478,0.4705,2836.6,2835.6,0.09356]
[1763998389250,0.4705,2836.6,2835.3,0.61937567]
[1763998389444,0.4705,2836.6,2835.8,0.09356]
[1763998390781,0.4705,2836.6,2836.0,0.09356]
[1763998391521,0.4705,2836.6,2835.7,0.81915411]
[1763998391654,0.4705,2836.6,2835.7,0.09356]
[1763998392340,0.4705,2836.6,2835.4,0.728064]
[1763998392599,0.4705,2836.6,2835.0,0.001]
[1763998392600,0.1889,2835.5,2835.0,0.001]
[1763998392751,0.1889,2835.5,2835.1,0.32256]
[1763998393136,0.1889,2835.5,2835.1,0.229]
[1763998393573,0.1889,2835.7,2835.1,0.32256]
[1763998393768,0.1889,2835.7,2835.1,0.09356]
[1763998393974,0.6608,2835.7,2835.0,0.001]
[1763998394581,0.4719,2835.6,2835.0,0.001]
[1763998396949,0.4711,2835.6,2835.0,0.001]
[1763998397796,0.4744,2835.1,2835.0,0.001]
[1763998399252,0.4719,2835.3,2835.0,0.001]
[1763998399457,0.4744,2835.1,2835.0,0.001]
[1763998399873,0.9507,2835.1,2835.0,0.001]
[1763998402061,0.4763,2835.5,2835.0,0.001]
[1763998402405,0.1889,2835.7,2835.0,0.001]
[1763998402969,0.4763,2835.6,2835.0,0.001]
[1763998403824,0.4701,2835.1,2835.0,0.001]
[1763998404284,0.9464,2835.1,2835.0,0.001]
[1763998404616,0.002,2836.3,2835.2,0.72559411]
[1763998404911,0.4783,2836.3,2835.5,0.09356]
[1763998405097,0.4783,2836.3,2835.2,0.405504]
[1763998405414,0.4783,2836.3,2835.1,0.634504]
[1763998405574,0.4783,2836.3,2835.1,0.689304]
[1763998405770,0.4783,2836.3,2835.3,0.09356]
[1763998405974,0.4783,2836.3,2835.1,0.689304]
[1763998405975,0.4783,2836.3,2835.2,0.09356]
[1763998406531,0.4783,2836.3,2835.1,0.634504]
[1763998406715,0.4783,2836.3,2835.2,0.58240199]
[1763998406910,0.4783,2836.3,2835.1,0.634504]
[1763998407300,0.4783,2836.3,2835.2,0.09356]
[1763998407829,0.002,2836.3,2835.3,0.460304]
[1763998408145,0.002,2836.3,2835.6,0.405504]
[1763998408306,0.002,2836.3,2836.0,0.09356]
[1763998408889,0.4783,2836.3,2835.7,0.09356]
[1763998409128,0.002,2836.3,2835.7,0.09356]
[1763998409991,0.002,2836.3,2835.8,0.09356]
[1763998410436,0.002,2836.3,2836.0,0.09356]
[1763998410589,0.002,2836.3,2836.2,0.0548]